bitfinex/quotes_ETHUSD_20240927
["timestamp","ask_amount","ask_price","bid_price","bid_amount"]
[1727450899721,0.8331,2692.3,2692.1,3.71457]
[1727450900027,0.8331,2692.3,2692.0,3.71469]
[1727450900028,1.16848636,2692.3,2692.0,3.71469]
[1727450900411,1.16848636,2692.3,2692.1,3.71454]
[1727450901136,1.16848636,2692.3,2692.2,3.71443]
[1727450901443,1.16848636,2692.6,2692.5,3.71402]
[1727450902903,1.16848636,2692.9,2692.8,3.7136]
[1727450903081,1.16848636,2693.0,2692.9,3.71346]
[1727450903280,1.55539826,2693.1,2692.9,3.71346]
[1727450903281,1.16848636,2693.1,2692.9,3.71346]
[1727450903610,2.38839826,2693.4,2693.1,3.71311]
[1727450903916,0.833,2693.4,2693.1,3.71311]
[1727450904125,0.833,2693.4,2693.2,3.71294]
[1727450904892,2.38839826,2693.4,2693.2,3.71294]
[1727450905090,1.16712914,2693.3,2693.2,3.71294]
[1727450905730,0.833,2693.4,2693.2,3.71294]
[1727450905931,2.35619826,2693.6,2693.2,3.71294]
[1727450906134,1.55539826,2693.5,2693.2,3.71294]
[1727450907195,1.55539826,2693.5,2693.2,7.4259]
[1727450907407,1.55539826,2693.5,2693.3,3.7129]
[1727450908428,2.55072173,2693.6,2693.3,3.7129]
[1727450908633,1.55539826,2693.5,2693.3,3.7129]
[1727450909145,2.55072173,2693.6,2693.3,3.7129]
[1727450909295,1.55539826,2693.5,2693.3,3.7129]
[1727450909801,2.55072173,2693.6,2693.3,3.7129]
[1727450910103,2.55072173,2693.6,2693.2,7.42589]
[1727450910321,2.55072173,2693.6,2693.3,3.71282]
[1727450910538,2.35619826,2693.6,2693.3,3.71282]
[1727450910743,1.55539826,2693.5,2693.3,3.71282]
[1727450911763,2.35619826,2693.6,2693.3,3.71282]
[1727450911938,1.55539826,2693.5,2693.4,3.71276]
[1727450912137,0.8008,2693.6,2693.4,3.71276]
[1727450912138,2.35619826,2693.6,2693.4,3.71276]
[1727450912656,1.55539826,2693.5,2693.4,3.71276]
[1727450913270,2.08758091,2693.5,2692.9,3.71337]
[1727450913477,2.08758091,2693.5,2692.8,0.7878]
[1727450913478,1.16653658,2693.2,2692.8,7.42711]
[1727450913633,1.16653658,2693.2,2692.8,3.71353]
[1727450913832,2.17988875,2693.2,2692.8,3.71352]
[1727450914669,2.17988907,2693.2,2692.8,3.71352]
[1727450915373,1.99523658,2693.1,2692.8,3.71352]
[1727450915673,5.70843658,2693.1,2692.6,3.71377]
[1727450915872,5.70843658,2693.1,2692.6,7.42754]
[1727450915873,1.62293531,2693.0,2692.6,7.42754]
[1727450916249,1.62293531,2693.0,2692.4,0.7878]
[1727450916250,1.16653658,2693.0,2692.9,3.71346]
[1727450916563,1.16653658,2693.2,2693.0,3.71333]
[1727450916768,1.16653658,2693.2,2693.1,3.71319]
[1727450916971,1.97173658,2693.3,2693.2,3.71305]
[1727450917277,7.42433,2693.9,2693.2,3.71305]
[1727450917278,4.26306963,2693.7,2693.4,3.71277]
[1727450917436,1.55539826,2693.6,2693.4,3.71277]
[1727450917638,1.55539826,2693.6,2693.5,3.71264]
[1727450917874,1.55539826,2693.6,2693.4,3.71277]
[1727450918035,2.05594852,2693.6,2693.4,3.71277]
[1727450918438,0.50055026,2693.6,2693.4,3.71277]
[1727450918638,2.05594852,2693.6,2693.2,3.71296]
[1727450918840,2.14876908,2693.6,2693.2,7.42593]
[1727450919090,2.05594852,2693.6,2693.2,7.42593]
[1727450919288,2.05594852,2693.6,2693.3,3.71289]
[1727450920508,0.50055026,2693.6,2693.3,3.71289]
[1727450920666,1.55539826,2693.6,2693.4,3.71275]
[1727450920999,2.31869826,2693.7,2693.4,3.71275]
[1727450921496,1.55539826,2693.6,2693.4,3.71275]
[1727450922410,1.55539826,2693.6,2693.3,3.71289]
[1727450922559,1.55539826,2693.6,2693.3,3.71281]
[1727450922766,1.55539826,2693.6,2693.4,3.71268]
[1727450923103,1.55539826,2693.7,2693.5,3.71264]
[1727450924001,1.55539826,2693.8,2693.5,3.71264]
[1727450924163,1.55539826,2693.7,2693.5,3.71264]
[1727450924364,1.55539826,2693.8,2693.5,3.71264]
[1727450924763,1.55539826,2693.8,2693.4,3.71268]
[1727450924764,1.55539826,2693.8,2693.6,3.7125]
[1727450925007,1.55539826,2694.0,2693.8,3.71222]
[1727450925303,2.77352013,2694.1,2693.8,3.71222]
[1727450925304,2.38569826,2694.1,2693.8,3.71222]
[1727450925478,0.8303,2694.1,2693.8,3.71222]
[1727450925804,6.9016001,2694.1,2693.6,7.42486]
[1727450925970,2.38569826,2694.1,2693.7,3.71233]
[1727450926165,0.8303,2694.1,2693.8,3.71216]
[1727450926367,1.55539826,2694.2,2693.9,3.71198]
[1727450926618,2.35279826,2694.3,2693.9,3.71198]
[1727450926818,2.35279826,2694.3,2693.7,3.71228]
[1727450926819,0.64521201,2694.2,2693.8,3.71221]
[1727450927018,0.64521201,2694.2,2693.9,3.71206]
[1727450927223,1.55539826,2694.5,2694.1,3.71179]
[1727450928204,5.26667826,2694.5,2694.0,3.71194]
[1727450928396,3.71128,2694.5,2694.0,3.71194]
[1727450928596,4.68716783,2694.5,2694.0,3.71194]
[1727450928996,3.7114,2694.4,2693.9,3.71205]
[1727450929509,3.7114,2694.4,2693.8,0.7599]
[1727450929917,3.71167,2694.2,2693.8,0.7599]
[1727450931158,0.7563,2694.1,2693.5,4.50716]
[1727450931444,0.7563,2694.1,2693.8,3.71222]
[1727450932841,0.7563,2694.1,2693.7,3.71235]
[1727450934169,0.7563,2694.1,2693.8,3.71221]
[1727450934952,0.7563,2694.1,2693.7,3.71234]
[1727450936267,0.7563,2694.1,2693.8,3.71219]
[1727450937266,1.2031,2694.1,2693.7,3.71227]
[1727450937472,0.7563,2694.1,2693.7,3.71227]
[1727450938006,4.46823,2694.1,2693.3,0.801]
[1727450938153,4.158833,2694.0,2693.5,3.71255]
[1727450938351,4.158823,2694.0,2693.5,3.71255]
[1727450938785,4.158823,2694.0,2693.5,7.42513]
[1727450938989,4.158823,2694.0,2693.6,3.71248]
[1727450939167,0.446823,2694.0,2693.6,3.71248]
[1727450939362,4.46813,2694.1,2693.6,3.71248]
[1727450940376,4.46813,2694.1,2693.7,3.71235]
[1727450940699,4.46813,2694.1,2693.5,3.71255]
[1727450940992,3.71215,2693.9,2693.5,3.71255]
[1727450941301,3.71215,2693.9,2693.1,7.29]
[1727450941302,0.8225,2693.8,2693.6,3.71249]
[1727450941466,5.26703826,2694.3,2693.8,3.71222]
[1727450941467,0.8225,2694.2,2693.8,3.71222]
[1727450941684,0.8225,2694.2,2693.9,3.71205]
[1727450941882,0.8225,2694.2,2693.7,0.7834]
[1727450942088,0.8225,2694.2,2693.9,3.71207]
[1727450943212,1.32890443,2694.2,2693.9,3.71207]
[1727450943826,1.31350427,2694.4,2693.9,3.71207]
[1727450944110,1.31350427,2694.4,2694.0,3.71185]
[1727450944111,0.7835,2694.4,2694.0,3.71185]
[1727450945575,0.7835,2694.4,2694.0,3.71090944]
[1727450945776,0.7835,2694.4,2694.1,3.71179]
[1727450946783,0.7835,2694.4,2693.7,0.7834]
[1727450946784,1.55539826,2694.5,2694.3,3.71153]
[1727450946983,2.72824755,2694.7,2694.5,3.71125]
[1727450946984,0.7891,2694.7,2694.5,3.71125]
[1727450947204,0.7891,2694.9,2694.4,3.3615058]
[1727450947384,1.55539826,2694.8,2694.2,4.46973]
[1727450947591,1.55539826,2694.8,2694.2,4.90737753]
[1727450947817,1.55539826,2694.8,2694.4,3.71136]
[1727450948107,6.05524826,2694.9,2694.4,3.71136]
[1727450948312,6.05524826,2694.9,2694.2,11.98043333]
[1727450948476,6.05524826,2694.9,2694.2,7.8311558]
[1727450948675,6.05524826,2694.9,2694.3,3.71152]
[1727450948912,6.05524826,2694.9,2694.2,7.8311558]
[1727450948913,1.55539826,2694.8,2694.2,7.8311558]
[1727450949354,5.26625826,2694.8,2694.2,7.8311558]
[1727450949527,1.55539826,2694.7,2694.2,4.46965]
[1727450949836,3.711,2694.7,2694.2,0.7581]
[1727450950432,3.711,2694.7,2694.2,4.46976]
[1727450951047,5.26639826,2694.7,2694.2,4.46976]
[1727450951397,5.26639826,2694.7,2694.2,7.8312658]
[1727450951724,3.71114,2694.6,2694.2,4.1196058]
[1727450951928,5.26639826,2694.7,2694.2,3.3615058]
[1727450952094,7.42208,2694.7,2694.2,3.3615058]
[1727450952400,3.711,2694.7,2694.2,3.3615058]
[1727450952932,3.71113,2694.6,2694.2,3.3615058]
[1727450953110,3.71129,2694.5,2693.9,14.3635858]
[1727450953315,0.8251,2694.4,2694.0,3.71187]
[1727450953819,0.8251,2694.4,2694.1,3.3615058]
[1727450954309,0.8251,2694.4,2694.1,7.0732958]
[1727450956425,3.71119,2694.6,2694.1,7.0732958]
[1727450956426,0.8083,2694.6,2694.2,3.71165]
[1727450957759,4.51943,2694.6,2694.2,3.71165]
[1727450957945,1.55539826,2694.8,2694.3,7.0729858]
[1727450958145,4.51921,2694.8,2694.3,7.0729858]
[1727450958462,4.51921,2694.8,2694.3,7.14720785]
[1727450958632,6.07460826,2694.8,2694.3,7.0729858]
[1727450958843,9.78554826,2694.8,2694.3,7.0729858]
[1727450959060,7.24731988,2694.8,2694.3,7.0729858]
[1727450959264,5.69192162,2694.8,2694.3,7.0729858]
[1727450959565,3.71099,2694.7,2694.3,7.0729858]
[1727450959725,0.0927776,2694.6,2694.0,3.3615058]
[1727450959925,0.7797,2694.4,2693.9,3.712]
[1727450960158,0.7797,2694.4,2693.7,0.7884]
[1727450960159,3.7117,2694.2,2693.7,0.7884]
[1727450960467,3.71211,2693.9,2693.5,4.53245]
[1727450960637,3.71211,2693.9,2693.6,4.0]
[1727450960835,0.7505,2694.0,2693.6,4.0]
[1727450961037,0.7505,2694.0,2693.6,7.71249]
[1727450961262,0.7505,2694.0,2693.6,3.71249]
[1727450961464,1.196732,2694.0,2693.6,3.71249]
[1727450962167,4.908752,2694.0,2693.5,8.245]
[1727450962669,4.908752,2694.0,2693.5,4.53245]
[1727450962993,4.908752,2694.0,2693.1,11.00317]
[1727450962994,0.0928047,2693.9,2693.1,7.29]
[1727450963282,0.0928047,2693.9,2692.6,11.00388]
[1727450963283,3.71306,2693.2,2692.6,11.00388]
[1727450963449,3.71306,2693.2,2692.7,3.71365]
[1727450963450,1.16623406,2693.2,2692.7,3.71365]
[1727450963799,0.7798,2693.0,2692.5,3.71396]
[1727450964306,0.7798,2693.0,2692.6,3.71386]
[1727450964628,0.7798,2693.0,2692.7,3.71374]
[1727450964901,1.16623406,2693.1,2692.8,3.71358]
[1727450965201,1.16623406,2693.2,2692.7,3.71366]
[1727450965758,1.16623406,2693.2,2692.9,3.71344]
[1727450965977,1.93823406,2693.3,2693.0,3.78758127]
[1727450966270,0.772,2693.3,2693.1,3.71319]
[1727450966865,1.95902037,2693.5,2693.1,3.71319]
[1727450967169,1.95886981,2693.5,2693.2,3.71302]
[1727450967472,1.55539826,2693.7,2693.3,3.71289]
[1727450967664,3.32454636,2693.8,2693.3,3.71289]
[1727450967964,1.55539826,2693.7,2693.3,3.71289]
[1727450968494,1.55539826,2693.7,2693.2,3.71301]
[1727450968683,7.03688636,2693.8,2693.2,3.71301]
[1727450968991,2.82440357,2693.7,2693.0,3.71326]
[1727450969194,5.26783826,2693.7,2693.1,3.71319]
[1727450969550,1.1652912,2693.5,2693.1,3.71319]
[1727450969789,1.1652912,2693.5,2693.0,3.71326]
[1727450970291,0.8071,2693.4,2693.0,3.71326]
[1727450971177,0.89992166,2693.4,2693.0,3.71326]
[1727450971817,2.06521286,2693.4,2693.0,3.71326]
[1727450971953,1.9723912,2693.4,2693.0,3.71326]
[1727450972679,0.8071,2693.4,2693.0,3.71326]
[1727450972981,1.9723912,2693.4,2693.0,3.71326]
[1727450973497,0.8071,2693.4,2693.1,3.71318]
[1727450973851,0.8071,2693.4,2693.2,3.71304]
[1727450974092,5.26764826,2693.8,2693.4,3.71276]
[1727450974093,0.8309,2693.8,2693.4,3.71276]
[1727450975260,0.8309,2693.8,2693.5,3.71251]
[1727450975494,0.8309,2693.8,2693.6,3.71246]
[1727450975708,0.8309,2694.1,2693.4,7.0741858]
[1727450975999,1.55539826,2694.3,2694.0,3.71188]
[1727450976000,0.7718,2694.3,2694.0,3.71188]
[1727450976161,0.7718,2694.3,2694.0,7.42375]
[1727450976363,0.7718,2694.3,2694.0,3.71187]
[1727450977072,0.7718,2694.3,2693.8,4.52242]
[1727450977289,0.7718,2694.3,2693.9,3.71201]
[1727450977468,0.7718,2694.3,2694.0,3.71193]
[1727450978064,0.7718,2694.3,2693.8,4.52242]
[1727450978263,0.7718,2694.3,2693.9,3.712]
[1727450978967,1.94087073,2694.3,2693.9,3.712]
[1727450980062,1.94087073,2694.3,2693.9,7.42402]
[1727450980261,0.7718,2694.3,2694.0,3.71193]
[1727450980561,0.7718,2694.3,2693.9,3.712]
[1727450980798,0.7718,2694.3,2694.0,3.71194]
[1727450981228,0.7718,2694.3,2693.9,3.712]
[1727450981512,0.7718,2694.3,2694.1,3.7117]
[1727450981664,2.36099826,2694.6,2694.3,3.71152]
[1727450981861,0.8056,2694.6,2694.3,3.71152]
[1727450982284,0.8323,2694.2,2693.2,0.46753909]
[1727450982511,0.8323,2694.2,2693.3,3.0]
[1727450982512,3.71187,2694.1,2693.3,3.0]
[1727450982667,3.71187,2694.1,2693.1,0.7918]
[1727450982668,3.71212,2693.9,2693.1,0.7918]
[1727450982863,3.71265,2693.5,2693.0,3.71332]
[1727450983116,0.8323,2693.6,2693.2,3.71298]
[1727450984268,0.8323,2693.6,2693.2,7.42592]
[1727450984472,0.8323,2693.6,2693.2,3.71294]
[1727450984673,4.5449,2693.6,2693.1,3.71317]
[1727450984871,4.5449,2693.6,2693.0,3.71324]
[1727450984872,3.71265,2693.5,2693.0,3.71324]
[1727450985420,0.8323,2693.6,2693.1,3.71314]
[1727450985909,3.71264,2693.5,2693.1,3.71314]
[1727450986072,4.54481,2693.6,2693.1,3.71314]
[1727450986273,4.54481,2693.6,2693.1,7.42626]
[1727450987152,3.71319,2693.1,2692.6,11.00381]
[1727450987451,0.8025,2693.0,2692.6,3.71385]
[1727450987609,4.51591,2693.0,2692.5,3.71401]
[1727450988241,0.8025,2693.0,2692.6,7.42756]
[1727450988606,0.8025,2693.0,2692.6,3.71376]
[1727450988809,0.8025,2693.0,2692.6,7.42756]
[1727450989346,3.71319,2693.1,2692.6,7.42756]
[1727450989559,0.8025,2693.2,2692.8,3.71351]
[1727450989849,5.26807826,2693.5,2693.0,3.71331]
[1727450989850,4.51518,2693.5,2693.0,3.71331]
[1727450990161,0.8025,2693.5,2693.1,3.71317]
[1727450990315,1.40953583,2693.5,2693.0,3.71331]
[1727450990735,5.12221583,2693.5,2693.0,3.71331]
[1727450990930,1.40953583,2693.5,2693.1,3.71316]
[1727450991241,4.51516,2693.5,2692.9,3.71333]
[1727450991641,4.51516,2693.5,2693.0,3.71332]
[1727450992258,0.8025,2693.5,2693.1,3.71318]
[1727450992429,0.8025,2693.5,2693.1,7.4262]
[1727450993436,0.8025,2693.5,2692.9,3.71337]
[1727450993732,0.8025,2693.5,2693.2,3.71302]
[1727450994661,0.8025,2693.8,2693.5,3.71255]
[1727450994860,0.8025,2693.8,2693.5,7.42511]
[1727450995032,0.8025,2693.8,2693.5,3.71255]
[1727450995238,0.8025,2693.8,2693.3,4.48503]
[1727450995239,0.8025,2693.8,2693.4,3.71276]
[1727450995778,5.5022649,2693.8,2693.3,3.71283]
[1727450995940,0.8025,2693.8,2693.3,3.71283]
[1727450996657,0.8025,2693.8,2693.3,7.42567]
[1727450997059,0.8025,2693.8,2693.3,3.71283]
[1727450997274,0.8025,2693.8,2693.1,4.48532]
[1727450997275,0.8025,2693.8,2693.6,3.71239]
[1727450997632,0.8025,2693.8,2693.6,7.42481]
[1727450997837,0.8025,2693.8,2693.6,3.71239]
[1727450998676,0.8025,2693.8,2693.5,3.71263]
[1727450998880,0.8025,2693.8,2693.4,7.4254]
[1727450999179,0.8025,2693.8,2693.4,3.71269]
[1727450999414,0.8025,2693.8,2693.5,3.71263]
[1727450999597,0.8025,2693.8,2693.6,3.71249]
[1727450999879,0.79264798,2693.8,2693.6,3.71249]
[1727451000481,1.55539826,2694.1,2693.1,4.48537]
[1727451000634,1.55539826,2694.4,2694.1,3.71181]
[1727451000833,1.55539826,2694.5,2694.2,3.71165]
[1727451001035,1.55539826,2694.8,2693.9,3.3615058]
[1727451001277,1.55539826,2694.8,2693.5,6.71262]
[1727451001278,1.55539826,2694.9,2694.6,3.71106]
[1727451001577,1.55539826,2695.1,2694.6,3.71106]
[1727451001776,8.97672826,2695.0,2694.5,3.71126]
[1727451001984,1.55539826,2694.9,2694.5,3.71126]
[1727451002182,1.55539826,2694.9,2694.4,3.71135]
[1727451002183,5.26611826,2694.9,2694.4,3.71135]
[1727451002336,1.55539826,2694.9,2694.5,3.71125]
[1727451002539,4.91690406,2695.0,2694.2,3.71157]
[1727451002836,4.91690406,2695.0,2694.6,3.71106]
[1727451002837,0.7888,2694.8,2694.6,3.71106]
[1727451003069,2.34599826,2695.2,2694.8,3.71083]
[1727451003267,2.34599826,2695.2,2694.8,7.4216]
[1727451003545,4.5009,2695.2,2694.6,4.47598]
[1727451003768,10.56640305,2695.2,2694.6,3.71098]
[1727451004074,6.85602305,2695.2,2694.6,3.70272618]
[1727451004584,5.30062479,2695.2,2694.6,3.70272618]
[1727451004791,5.30062479,2695.2,2694.7,3.71092]
[1727451004942,5.30062479,2695.2,2694.8,3.71083]
[1727451005141,5.30062479,2695.2,2694.6,7.41370618]
[1727451005382,5.30062479,2695.2,2694.4,0.7623]
[1727451005583,4.39606231,2695.1,2694.6,3.71112]
[1727451005794,3.71093,2694.8,2694.2,3.71163]
[1727451005971,3.3615058,2695.0,2694.2,3.71163]
[1727451005972,4.082153,2694.7,2694.2,3.71165]
[1727451006283,4.46831,2694.9,2694.4,3.71138]
[1727451006486,4.46831,2694.9,2694.5,3.78545876]
[1727451006652,0.7576,2694.9,2694.6,3.71111]
[1727451007267,0.7609,2695.2,2694.8,3.71084]
[1727451007584,0.7609,2695.2,2694.4,0.7635]
[1727451007585,0.7609,2695.2,2694.7,3.71091]
[1727451007875,0.7609,2695.2,2694.8,3.71078]
[1727451008083,0.7609,2695.2,2694.9,3.71064]
[1727451009484,0.7609,2695.2,2694.8,3.71084]
[1727451009688,1.67177684,2695.2,2694.6,3.71099]
[1727451009864,3.71051,2695.1,2694.6,3.71099]
[1727451010055,0.7609,2695.2,2694.8,3.71083]
[1727451010256,0.7609,2695.2,2694.4,3.71131]
[1727451010593,3.71077,2694.9,2694.5,3.0]
[1727451010799,4.4529,2694.9,2694.5,3.0]
[1727451010967,0.74213,2694.9,2694.5,6.71124]
[1727451011151,4.47127,2695.2,2694.5,3.0]
[1727451011352,0.7609,2695.2,2694.8,3.71078]
[1727451011559,0.7609,2695.2,2694.9,3.71063]
[1727451012390,3.71003,2695.4,2694.9,3.71063]
[1727451012691,0.761,2695.4,2695.0,3.71048]
[1727451013222,0.761,2695.4,2695.1,3.71036]
[1727451013653,0.761,2695.4,2695.0,3.71057]
[1727451014001,0.761,2695.4,2695.0,7.42105]
[1727451015482,0.761,2695.4,2695.1,3.71038]
[1727451016799,3.7103,2695.2,2694.8,3.71075]
[1727451016989,0.761,2695.4,2694.8,3.71073]
[1727451017360,3.71017,2695.3,2694.9,3.7107]
[1727451017858,3.71032,2695.2,2694.7,3.71098]
[1727451018224,4.157437,2695.2,2694.8,3.71083]
[1727451018499,0.447117,2695.2,2694.9,3.7107]
[1727451018674,3.71016,2695.3,2694.9,3.7107]
[1727451019072,4.47104,2695.4,2694.9,3.7107]
[1727451019272,4.528273,2695.3,2694.9,3.7107]
[1727451019479,4.528273,2695.3,2694.6,3.71104]
[1727451019480,3.71032,2695.2,2694.8,3.71083]
[1727451020281,4.528273,2695.3,2694.9,3.7107]
[1727451020603,3.71017,2695.3,2694.9,3.7107]
[1727451020972,4.56377963,2695.4,2694.9,3.7107]
[1727451021179,4.47102,2695.4,2695.0,3.71056]
[1727451021558,0.761,2695.4,2695.0,3.71051]
[1727451021757,0.761,2695.4,2695.2,3.71019]
[1727451021970,0.8301,2695.7,2694.8,0.7911]
[1727451022200,5.281627,2695.7,2695.3,3.71014]
[1727451022364,5.281627,2695.7,2695.1,3.71043]
[1727451022566,3.70988,2695.6,2695.1,3.71043]
[1727451022762,0.8025,2695.5,2694.6,8.084]
[1727451022985,3.71091,2694.8,2694.4,3.71132]
[1727451023196,1.173591,2694.7,2694.0,0.794]
[1727451023372,0.8025,2694.7,2694.3,3.71146]
[1727451023577,0.8025,2694.7,2694.1,3.3615058]
[1727451023578,0.8025,2694.7,2694.1,3.71175]
[1727451023776,3.71113,2694.6,2694.2,3.71164]
[1727451023976,4.51354,2694.7,2694.2,3.71164]
[1727451024310,0.451335,2694.6,2694.2,3.71164]
[1727451024908,0.451335,2694.6,2694.2,7.42324]
[1727451025076,0.8025,2694.7,2694.3,3.71145]
[1727451025497,0.8025,2694.7,2694.0,8.21769]
[1727451025498,3.71113,2694.6,2694.0,8.21769]
[1727451025687,3.71113,2694.6,2694.1,3.71177]
[1727451025867,3.71176,2694.2,2693.6,7.29]
[1727451026207,4.48149,2693.9,2693.4,3.71271]
[1727451026370,0.7694,2693.9,2693.2,11.00297]
[1727451026565,4.48158,2693.9,2693.2,14.71587]
[1727451026794,8.19378,2693.9,2693.2,14.71587]
[1727451027013,4.93901783,2693.9,2693.3,3.7129]
[1727451027218,1.22683783,2693.9,2693.4,7.42532]
[1727451027506,0.7694,2693.9,2693.4,3.71264]
[1727451028337,0.7694,2693.9,2693.5,3.71254]
[1727451028485,0.7694,2693.9,2693.6,3.71248]
[1727451028687,0.7694,2693.9,2693.6,7.4249]
[1727451028891,0.7694,2693.9,2693.6,3.71242]
[1727451030030,0.7694,2693.9,2693.4,3.71273]
[1727451030031,0.7694,2693.9,2693.4,7.42541]
[1727451030217,4.48157,2693.9,2693.3,3.71289]
[1727451030389,4.26246928,2693.8,2693.3,3.71289]
[1727451030589,4.26246928,2693.8,2693.2,14.71593]
[1727451030934,4.26246928,2693.8,2692.9,3.71338]
[1727451030935,3.71273,2693.5,2692.9,3.71338]
[1727451031225,0.7955,2693.6,2692.9,6.3615058]
[1727451031417,0.7955,2693.6,2693.2,3.71297]
[1727451032788,0.7955,2693.6,2693.3,3.71283]
[1727451033328,0.7758,2693.9,2693.5,3.71264]
[1727451033905,0.7758,2693.9,2693.3,3.71281]
[1727451034105,0.7758,2693.9,2693.4,3.71267]
[1727451034630,0.7758,2693.9,2693.5,3.71252]
[1727451034929,0.7758,2693.9,2693.5,7.42507]
[1727451035128,0.7758,2693.9,2693.5,3.71252]
[1727451035337,0.7758,2693.9,2693.5,7.42508]
[1727451035521,0.7758,2693.9,2693.5,3.71252]
[1727451035693,0.7758,2693.9,2693.5,3.71251]
[1727451035888,3.3615058,2694.4,2693.7,3.71225]
[1727451035889,0.7568,2694.3,2693.7,3.71225]
[1727451036135,0.7568,2694.3,2693.8,3.71214]
[1727451036316,4.46836,2694.3,2693.8,3.71214]
[1727451036831,4.46836,2694.3,2693.9,3.71206]
[1727451036832,0.7568,2694.3,2693.9,3.71206]
[1727451036990,4.46834,2694.3,2693.8,3.7122]
[1727451037391,0.7568,2694.3,2693.7,3.71225]
[1727451037697,0.7568,2694.3,2693.9,3.71207]
[1727451038596,0.7568,2694.3,2693.9,3.71201]
[1727451038797,5.26633826,2694.8,2694.1,3.3615058]
[1727451038798,0.7939,2694.8,2694.1,3.3615058]
[1727451039099,0.7939,2694.8,2694.4,3.71137]
[1727451039928,0.7939,2694.8,2694.3,3.71141]
[1727451040528,3.71098,2694.7,2694.1,3.71167]
[1727451040693,0.7516,2694.3,2693.9,3.71199]
[1727451041239,0.7516,2694.3,2693.7,14.00228]
[1727451041240,0.7516,2694.3,2693.7,11.00228]
[1727451041405,0.7516,2694.3,2693.5,4.50315]
[1727451041406,3.71189,2694.1,2693.5,3.71255]
[1727451041749,5.21528368,2694.0,2693.4,3.71277]
[1727451041894,5.21528368,2694.0,2693.3,3.71283]
[1727451042092,1.50324368,2694.0,2693.5,3.71256]
[1727451042317,0.7516,2694.0,2693.6,3.7124]
[1727451043228,0.7516,2694.0,2693.6,3.71247]
[1727451045269,0.7516,2694.0,2693.5,3.71255]
[1727451045425,1.197936,2694.0,2693.5,3.71255]
[1727451046124,0.7516,2694.0,2693.7,3.71235]
[1727451046659,0.7516,2694.0,2693.2,8.0806]
[1727451046660,0.7516,2694.0,2693.6,3.71249]
[1727451046864,4.46355,2694.0,2693.6,3.71249]
[1727451047052,3.71228,2693.8,2693.3,3.71285]
[1727451047365,3.80509422,2693.8,2693.3,3.71285]
[1727451047679,0.8703142,2693.7,2693.2,7.29]
[1727451047831,0.7775,2693.4,2692.9,7.42675]
[1727451048025,4.49036,2693.4,2692.9,7.42674]
[1727451048332,0.7775,2693.1,2692.6,3.71385]
[1727451048535,4.58361288,2693.1,2692.7,4.0]
[1727451048736,0.09283904,2693.0,2692.6,3.71385]
[1727451048951,0.4583479,2693.0,2692.6,3.71379]
[1727451049267,0.87033729,2693.1,2692.7,3.71368]
[1727451049466,0.7775,2693.1,2692.7,3.71368]
[1727451050366,0.87033725,2693.1,2692.7,3.71368]
[1727451050741,0.7775,2693.1,2692.7,3.71368]
[1727451050935,1.23584772,2693.1,2692.5,3.71394]
[1727451051141,0.87033726,2693.1,2692.7,3.71374]
[1727451051566,0.7775,2693.1,2692.7,3.71367]
[1727451051776,0.371259,2693.5,2692.4,3.71413]
[1727451051777,0.7559,2693.5,2692.8,3.71351]
[1727451051955,0.7559,2693.5,2693.0,3.71325]
[1727451052630,0.7559,2693.5,2693.2,3.71294]
[1727451052831,4.5113,2694.1,2693.4,3.71277]
[1727451053081,0.45113,2694.0,2693.7,3.71236]
[1727451053246,4.51122,2694.1,2693.7,3.71236]
[1727451053427,0.7994,2694.1,2693.8,3.71215]
[1727451053631,0.7994,2694.1,2693.1,3.8169]
[1727451053861,0.7994,2694.1,2693.7,3.71225]
[1727451054064,0.7994,2694.1,2693.9,3.71198]
[1727451054265,0.7752,2694.4,2693.9,3.71198]
[1727451054476,0.7752,2694.4,2694.0,3.71181]
[1727451054671,1.2689018,2694.4,2694.0,3.71181]
[1727451054842,1.2689018,2694.4,2694.1,3.71171]
[1727451054843,0.7752,2694.4,2694.1,3.71171]
[1727451055933,0.7752,2694.4,2694.0,3.71181]
[1727451056381,4.4866,2694.4,2693.9,3.71206]
[1727451056668,3.71071,2694.9,2694.3,3.71153]
[1727451056870,0.7752,2694.8,2694.4,3.71136]
[1727451057263,0.7752,2694.8,2694.4,3.71132]
[1727451057778,4.48605,2694.8,2694.4,3.71132]
[1727451057948,0.7752,2694.8,2694.4,3.71132]
[1727451058363,0.7752,2694.8,2694.2,3.78583392]
[1727451058542,4.48605,2694.8,2694.3,3.7115]
[1727451059173,0.7752,2694.8,2694.5,3.71118]
[1727451059554,0.7752,2694.8,2694.4,3.71129]
[1727451060793,1.594878,2694.8,2694.3,3.71144]
[1727451061388,1.594878,2694.8,2694.2,3.71162]
[1727451061578,1.594878,2694.8,2694.2,3.71159]
[1727451061892,3.71106,2694.7,2694.0,3.71184]
[1727451062128,3.71106,2694.7,2694.2,3.71165]
[1727451062243,3.71114,2694.6,2694.2,3.71165]
[1727451062442,3.71106,2694.7,2694.2,3.71165]
[1727451062684,3.71106,2694.7,2693.8,7.29]
[1727451062685,3.71149,2694.4,2693.8,7.29]
[1727451062837,4.4908,2694.3,2693.8,11.00213]
[1727451063037,0.7792,2694.3,2693.9,3.71195]
[1727451063488,0.7792,2694.3,2694.1,3.71174]
[1727451064396,0.7792,2694.3,2693.8,7.29]
[1727451064893,0.7792,2694.3,2693.9,3.71201]
[1727451065058,0.7792,2694.3,2693.9,7.42402]
[1727451065252,0.7792,2694.3,2694.0,3.71183]
[1727451065658,0.7792,2694.3,2694.1,3.71178]
[1727451066351,0.7792,2694.3,2694.1,3.71181]
[1727451066550,0.7792,2694.3,2693.9,3.71201]
[1727451067263,3.71175,2694.2,2693.7,3.71226]